fUSD/lending_fUSD_20240828
["ID","MTS","AMOUNT","RATE_DAILY","PERIOD"]
[336467137,1724859046238,-43.72735366,0.00023646,2]
[336467138,1724859046247,-150.0,0.00023648,2]
[336467139,1724859046256,-5976.73550932,0.00023857,2]
[336467140,1724859046267,-320.31796695,0.00023857,2]
[336467141,1724859046277,-10382.32949958,0.00023867,2]
[336467142,1724859046328,-1761.0,0.00023867,2]
[336467143,1724859046340,-283.7749965,0.00023867,2]
[336467154,1724859048303,510.0,0.00023986,120]
[336467156,1724859070969,155.94399844,0.000108,2]
[336467157,1724859086857,3829.6703,0.00010889,2]
[336467158,1724859105326,155.0,0.00010949,2]
[336467160,1724859172492,170.6804844,0.00010949,2]
[336467163,1724859262080,413.46513712,0.00010949,2]
[336467164,1724859271635,162.89789025,0.00010949,2]
[336467166,1724859303149,168.84,0.0001,2]
[336467167,1724859314521,150.5,0.00023977,120]
[336467168,1724859315062,150.5,0.00023967,120]
[336467169,1724859315345,166.0,0.00023977,120]
[336467170,1724859315805,195.94,0.00023957,120]
[336467171,1724859315904,166.0,0.00023967,120]
[336467172,1724859316383,166.0,0.00023957,120]
[336467173,1724859316832,166.0,0.0002398,120]
[336467174,1724859317322,166.0,0.0002397,120]
[336467175,1724859318431,166.0,0.0002396,120]
[336467176,1724859318895,166.0,0.0002398,120]
[336467177,1724859319368,166.0,0.0002397,120]
[336467178,1724859327436,1051.50505486,0.00010949,2]
[336467186,1724859513839,2386.3614012,0.00010999,2]
[336467190,1724859599206,-441.0,0.00011999,2]
[336467195,1724859674902,535.0,0.00023977,120]
[336467196,1724859675379,535.0,0.00023967,120]
[336467197,1724859675920,535.0,0.00023957,120]
[336467198,1724859676933,535.0,0.0002398,120]
[336467199,1724859677057,535.0,0.0002397,120]
[336467200,1724859678105,535.0,0.0002396,120]
[336467201,1724859678756,535.0,0.0002398,120]
[336467202,1724859679075,535.0,0.0002397,120]
[336467205,1724859729360,500.0,0.00011,2]
[336467206,1724859734057,295.03427055,0.00010999,2]
[336467207,1724859745403,215.19713359,0.00010999,2]
[336467208,1724859755236,198.86194686,0.00010999,2]
[336467209,1724859758121,418.65388325,0.00010999,2]
[336467210,1724859790473,182.27758577,0.00010999,2]
[336467211,1724859790777,157.06224323,0.00010999,2]
[336467212,1724859795022,164.35872033,0.00010999,2]
[336467213,1724859800480,159.57347377,0.00010999,2]
[336467214,1724859803124,327.2489738,0.00010999,2]
[336467215,1724859816330,204.18646689,0.00010999,2]
[336467216,1724859816986,155.1137372,0.00010999,2]
[336467217,1724859822183,2000.0,0.00011,2]
[336467218,1724859857734,169.91283276,0.00010999,2]
[336467219,1724859864970,2000.0,0.00011,3]
[336467220,1724859872112,371.95422743,0.00010999,2]
[336467221,1724859903375,298.88080064,0.00010999,2]
[336467222,1724859925957,155.0,0.00010999,2]
[336467223,1724860006727,155.0,0.00010999,2]
[336467224,1724860033502,4490.0,0.00023979,120]
[336467225,1724860033548,302.0,0.00023979,120]
[336467226,1724860034077,4496.41,0.00023969,120]
[336467227,1724860034175,306.18,0.00023969,120]
[336467228,1724860035504,150.5,0.00023966,120]
[336467229,1724860036116,186.8,0.00023956,120]
[336467242,1724860090235,155.06411721,0.00010999,2]
[336467243,1724860132612,158.84,0.00010959,2]
[336467253,1724860232110,510.0,0.00023986,120]
[336467254,1724860232383,-171.0,0.00011026,2]
[336467255,1724860232393,-181.722,0.00012901,2]
[336467263,1724860238226,-2968.98463306,0.00012901,2]
[336467264,1724860238235,-1554.2186153,0.00012926,2]
[336467265,1724860238496,-1138.0,0.00012926,2]
[336467295,1724860240488,-293.88,0.00012926,2]
[336467296,1724860240549,-164.60801775,0.00012926,2]
[336467297,1724860240568,-353.81598225,0.00012938,2]
[336467314,1724860243312,-1215.70498904,0.00012938,2]
[336467315,1724860243321,-2012.24870119,0.00012951,2]
[336467412,1724860285369,200.0,0.00024,120]
[336467413,1724860316643,200.0,0.00024,120]
[336467414,1724860353510,300.0,0.00024,120]
[336467416,1724860383614,150.1,0.00024,120]
[336467417,1724860394842,3592.0,0.00023947,120]
[336467418,1724860395338,3592.0,0.00023937,120]
[336467419,1724860396547,3592.0,0.00023927,120]
[336467420,1724860396727,3592.0,0.00023974,120]
[336467421,1724860396820,3592.0,0.00023964,120]
[336467422,1724860397238,3592.0,0.00023954,120]
[336467423,1724860397731,3592.0,0.00023975,120]
[336467424,1724860398225,3592.0,0.00023965,120]
[336467425,1724860398695,3592.0,0.00023977,120]
[336467426,1724860399408,3592.0,0.00023967,120]
[336467427,1724860489507,1000.0,0.00022,60]
[336467428,1724860529015,1055.90244402,0.0001096,2]
[336467431,1724860634625,4912.0,0.00023879,120]
[336467432,1724860634687,150.5,0.00023879,120]
[336467433,1724860634837,607.0,0.00023879,120]
[336467434,1724860635131,4912.0,0.00023869,120]
[336467435,1724860635164,240.7,0.00023869,120]
[336467436,1724860635595,607.0,0.00023869,120]
[336467437,1724860635686,4912.0,0.00023859,120]
[336467438,1724860635724,290.32,0.00023879,120]
[336467439,1724860635817,607.0,0.00023859,120]
[336467440,1724860636096,4912.0,0.00023964,120]
[336467441,1724860636332,607.0,0.00023964,120]
[336467442,1724860636774,4912.0,0.00023954,120]
[336467443,1724860636829,607.0,0.00023954,120]
[336467444,1724860637074,4912.0,0.00023944,120]
[336467445,1724860637298,607.0,0.00023944,120]
[336467446,1724860637544,4912.0,0.00023975,120]
[336467447,1724860637790,607.0,0.00023975,120]
[336467448,1724860638025,4912.0,0.00023965,120]
[336467449,1724860638257,607.0,0.00023965,120]
[336467450,1724860638527,4912.0,0.00023977,120]
[336467451,1724860638971,4919.8,0.00023967,120]
[336467452,1724860639489,607.0,0.00023977,120]
[336467453,1724860639970,612.06,0.00023967,120]
[336467454,1724860652466,157.41,0.00010959,2]
[336467457,1724860708746,500.0,0.00023938,120]
[336467458,1724860722890,2114.19439872,0.00010999,2]
[336467459,1724860744516,500.0,0.00023911,120]
[336467460,1724860762485,155.0,0.00010999,2]
[336467466,1724860844812,1050.0,0.0001,2]
[336467468,1724860868033,166.76361397,0.00010999,2]
[336467469,1724860885005,485.73832575,0.00010999,2]
[336467470,1724860904564,155.0,0.00010999,2]
[336467473,1724860934574,155.0,0.00010999,2]
[336467474,1724860940298,155.0,0.00010999,2]
[336467475,1724860951327,204.33269481,0.00010999,2]
[336467476,1724860989697,266.35,0.00011,2]
[336467477,1724861012364,240.64293817,0.00010999,2]
[336467488,1724861252215,164.07914454,0.00010999,2]
[336467489,1724861408044,949.97294688,0.00010999,2]
[336467508,1724861432277,-301.72730554,0.00011336,2]
[336467509,1724861432335,-198.27269446,0.00011336,2]
[336467510,1724861432345,-1138.45793186,0.00011899,2]
[336467511,1724861432355,-157.46776873,0.00012613,2]
[336467512,1724861432365,-1910.03696891,0.0001283,2]
[336467513,1724861432375,-673.94561136,0.00012938,2]
[336467514,1724861432389,-155.0,0.0001294,2]
[336467515,1724861432399,-11173.06757292,0.00012951,2]
[336467516,1724861432409,-150.29582248,0.00012951,2]
[336467517,1724861432419,-159.11,0.00013086,2]
[336467518,1724861432429,-155.21641346,0.00013292,2]
[336467519,1724861432439,-523.48607601,0.00013391,2]
[336467520,1724861432449,-499.99,0.00013971,2]
[336467521,1724861432459,-1358.67876,0.0001406,2]
[336467522,1724861432470,-1358.67877,0.0001407,2]
[336467523,1724861432482,-1358.67876,0.0001408,2]
[336467524,1724861432492,-1358.67877,0.0001409,2]
[336467525,1724861432502,-1358.67876,0.0001409,2]
[336467526,1724861432512,-1358.67877,0.0001409,2]
[336467527,1724861432522,-316.80001562,0.00014235,2]
[336467528,1724861432532,-1111.0405689,0.00015,2]
[336467529,1724861432545,-479.9594311,0.00015,2]
[336467530,1724861432554,-82.72209591,0.00017673,2]
[336467531,1724861432587,-217.27790409,0.00017673,2]
[336467532,1724861432598,-518.424,0.00017674,2]
[336467534,1724861432608,-930.0,0.00017674,2]
[336467536,1724861432618,-210.959,0.00017674,2]
[336467537,1724861432627,-2396.45887166,0.00017674,2]
[336467539,1724861432640,-4439.12712834,0.00017674,2]
[336467541,1724861432650,-429.36,0.0001776,2]
[336467542,1724861432660,-2751.0,0.0001865,2]
[336467544,1724861432671,-200.0,0.00018697,2]
[336467546,1724861432681,-23900.0,0.00018697,2]
[336467548,1724861432691,-400.0,0.00019032,2]
[336467549,1724861432700,-242.63,0.00019054,2]
[336467551,1724861432710,-521.06856715,0.00019246,2]
[336467553,1724861432720,-5164.83,0.00019361,2]
[336467555,1724861432733,-157.41,0.00019361,2]
[336467556,1724861432743,-600.0,0.00019363,2]
[336467557,1724861432752,-869.31384586,0.0002,2]
[336467558,1724861432762,-429.36,0.00020024,2]
[336467559,1724861432771,-171.0,0.00020114,2]
[336467560,1724861432781,-300.0,0.00020142,2]
[336467561,1724861432791,-156.8,0.00020342,2]
[336467562,1724861432801,-243.2,0.00020534,2]
[336467563,1724861432810,-151.59,0.00020537,2]
[336467564,1724861432820,-151.59,0.00020543,2]
[336467565,1724861432829,-151.59,0.00020549,2]
[336467566,1724861432839,-151.59,0.00020554,2]
[336467567,1724861432848,-151.59,0.0002056,2]
[336467568,1724861432858,-151.59,0.00020566,2]
[336467569,1724861432868,-151.59,0.00020571,2]
[336467570,1724861432877,-151.59,0.00020577,2]
[336467571,1724861432887,-151.59,0.00020583,2]
[336467572,1724861432897,-151.59,0.00020589,2]
[336467573,1724861432906,-151.59,0.00020594,2]
[336467574,1724861432916,-151.59,0.000206,2]
[336467575,1724861432926,-151.59,0.00020606,2]
[336467576,1724861432936,-151.59,0.00020611,2]
[336467577,1724861432946,-151.59,0.00020617,2]
[336467578,1724861432956,-151.59,0.00020623,2]
[336467579,1724861432965,-151.59,0.00020628,2]
[336467580,1724861432976,-151.59,0.00020634,2]
[336467581,1724861432986,-151.59,0.0002064,2]
[336467582,1724861432995,-208.0,0.00020674,2]
[336467583,1724861433005,-167.0,0.00020695,2]
[336467584,1724861433015,-155.0,0.00021,2]
[336467585,1724861433024,-678.16006081,0.00021,2]
[336467586,1724861433048,-324.73993919,0.00021,2]
[336467587,1724861433059,-167.0,0.00021117,2]
[336467588,1724861433069,-1210.0,0.000212,2]
[336467589,1724861433079,-6360.93475738,0.00021326,2]
[336467590,1724861433091,-600.27,0.00021326,2]
[336467591,1724861433103,-289.3455407,0.00021326,2]
[336467592,1724861437132,510.0,0.00023856,120]
[336467594,1724861438369,-499.99,0.00013292,2]
[336467595,1724861438379,-400.0,0.00021411,2]
[336467596,1724861438388,-300.0,0.00021512,2]
[336467598,1724861438397,-1242.23,0.00021589,30]
[336467600,1724861438407,-180.32487481,0.00021756,2]
[336467601,1724861438417,-600.0,0.00021784,2]
[336467602,1724861438427,-677.22994692,0.00021799,2]
[336467603,1724861438437,-155.0,0.00021842,2]
[336467605,1724861438446,-553.92202156,0.000219,2]
[336467606,1724861438512,-446.07797844,0.000219,2]
[336467607,1724861438522,-2238.59391537,0.00021918,2]
[336467620,1724861440377,-1094.57625342,0.00021177,2]
[336467621,1724861440389,-2662.6206672,0.00021177,2]
[336467625,1724861440837,-6689.44452562,0.00021177,2]
[336467627,1724861440847,-1007.19608463,0.00021918,2]
[336467629,1724861440858,-6261.12,0.00021918,2]
[336467631,1724861440867,-150.0,0.00021918,2]
[336467633,1724861440877,-1002.9,0.00021975,2]
[336467635,1724861440886,-30013.76988802,0.00022,2]
[336467637,1724861440896,-625.04271748,0.00022086,2]
[336467638,1724861440906,-595.49857933,0.00022136,2]
[336467639,1724861440915,-1765.96583556,0.00022198,2]
[336467640,1724861440925,-1765.96583556,0.00022198,2]
[336467641,1724861440934,-6297.05347627,0.00022198,2]
[336467642,1724861440944,-3000.0,0.000222,2]
[336467643,1724861440953,-429.36,0.00022288,2]
[336467644,1724861440963,-1000.0,0.00022466,2]
[336467645,1724861440972,-150.0,0.00022495,2]
[336467646,1724861440982,-15929.12885562,0.00022607,2]
[336467647,1724861441063,-638.12711745,0.00022607,2]
[336467648,1724861441075,-1027.23639687,0.00022607,2]
[336467649,1724861441086,-4843.00963059,0.00022607,2]
[336467653,1724861441153,-886.16033302,0.00022607,2]
[336467657,1724861441182,-840.77658634,0.00022607,2]
[336467774,1724861443885,-324.06339289,0.00022607,2]
[336467789,1724861446366,-588.82,0.00022196,2]
[336467801,1724861446476,-1177.14583556,0.00022196,2]
[336467803,1724861446488,-4050.33107118,0.00022607,2]
[336467805,1724861446500,-815.59179718,0.00022607,2]
[336467808,1724861446512,-549.96057904,0.00022607,2]
[336469467,1724861464293,268.16800468,0.000108,2]
[336472962,1724861593984,150.5,0.00023835,120]
[336472963,1724861594464,150.5,0.00023825,120]
[336472964,1724861594919,150.5,0.00023815,120]
[336472965,1724861595576,150.5,0.00023853,120]
[336472967,1724861595904,150.5,0.00023843,120]
[336472968,1724861596382,150.5,0.00023833,120]
[336472969,1724861596839,174.04,0.00023945,120]
[336472970,1724861631261,165.36,0.00010959,2]
[336472982,1724861906111,860.27502339,0.0001089,2]
[336472983,1724861915312,1638.82104286,0.00024,120]
[336472984,1724861954334,241.0,0.00023812,120]
[336472985,1724861954788,241.0,0.00023802,120]
[336472986,1724861955261,241.0,0.00023792,120]
[336472987,1724861955796,241.0,0.00023843,120]
[336472988,1724861956920,241.0,0.00023833,120]
[336472989,1724861957025,241.0,0.00023823,120]
[336472990,1724861957312,241.0,0.00023854,120]
[336472991,1724861958409,241.0,0.00023844,120]
[336472992,1724861958872,241.0,0.00023964,120]
[336472993,1724861959359,247.0,0.00023954,120]
[336472994,1724861969630,2000.0,0.00019321,120]
[336472995,1724862101024,500.0,0.00024,120]
[336472996,1724862123103,154.18,0.00010959,2]
[336472997,1724862239565,5808.94,0.00022,60]
[336472999,1724862294896,704.69,0.00011,2]
[336473000,1724862330454,170.6347928,0.00011,2]
[336473001,1724862330508,412.59987064,0.000101,2]
[336473004,1724862341945,648.44021707,0.00011,2]
[336473005,1724862341987,403.33824314,0.00011,2]
[336473006,1724862342056,4596.66175686,0.0001099,4]
[336473007,1724862342091,40387.37568785,0.0001099,4]
[336473008,1724862352693,707.13,0.00010959,2]
[336473068,1724862511957,1860.7009197,0.0001089,2]
[336473101,1724862631410,-300.0,0.00010989,2]
[336473102,1724862631420,-150.0,0.00010989,2]
[336473104,1724862631429,-592.36206145,0.0001099,4]
[336473108,1724862634679,-236986.94153715,0.0001099,4]
[336473109,1724862634700,-1746.55062526,0.0001099,4]
[336473110,1724862634711,-3504.07490294,0.0001099,4]
[336473111,1724862634765,-500.0,0.0001099,4]
[336473112,1724862634776,-409.78094695,0.0001099,4]
[336473113,1724862634798,-6286.357445,0.0001099,4]
[336473114,1724862634809,-977.48609282,0.0001099,4]
[336473115,1724862634820,-641.6,0.0001099,4]
[336473116,1724862634831,-278.60878409,0.0001099,4]
[336473117,1724862634842,-741.65536624,0.0001099,4]
[336473371,1724862637518,-8372.70792415,0.0001099,4]
[336473374,1724862637530,-1000.0,0.0001099,4]
[336473377,1724862637551,-5437.12298373,0.0001099,4]
[336473379,1724862637563,-2901.32341379,0.0001099,4]
[336473382,1724862637579,-11496.36475852,0.0001099,4]
[336473389,1724862637650,-642.5,0.0001099,4]
[336473391,1724862637661,-2953.88686576,0.0001099,4]
[336473397,1724862637711,-468.87,0.0001099,4]
[336473399,1724862637723,-697.95966885,0.0001099,4]
[336473401,1724862637734,-1777.0,0.0001099,4]
[336473404,1724862637754,-2164.78490899,0.0001099,4]
[336473408,1724862637785,-6698.23062816,0.0001099,4]
[336473411,1724862637797,-1170.32849891,0.0001099,4]
[336473413,1724862637808,-3392.01368297,0.0001099,4]
[336473415,1724862637819,-736.41743202,0.0001099,4]
[336473417,1724862637831,-1303.84789642,0.0001099,4]
[336473421,1724862637856,-19761.90884212,0.0001099,4]
[336473423,1724862637867,-4795.194833,0.00010999,2]
[336473425,1724862637877,-11142.84999226,0.00010999,2]
[336473426,1724862637887,-7027.66677608,0.00011,2]
[336473430,1724862637906,-27972.33322392,0.00011,2]
[336473433,1724862637926,-598.98,0.00011,2]
[336473435,1724862637942,-150.0,0.00012033,2]
[336473438,1724862637958,-420.0,0.00012076,2]
[336473441,1724862637978,-4798.42868441,0.00012089,2]
[336473444,1724862637994,-402.88196843,0.00012089,2]
[336473446,1724862638011,-4051.50504914,0.00013001,2]
[336473449,1724862638027,-2505.60920584,0.00013001,2]
[336473452,1724862638042,-1725.0,0.00013001,2]
[336473454,1724862638059,-244.5958303,0.00013042,2]
[336473456,1724862638071,-155.0,0.00013042,2]
[336473459,1724862638085,-168.08735129,0.00013042,2]
[336473462,1724862638102,-155.07136653,0.00013042,2]
[336473464,1724862638119,-155.0,0.00013042,2]
[336473467,1724862638136,-155.41013832,0.00013042,2]
[336473469,1724862638151,-309.72735724,0.00013042,2]
[336473471,1724862638163,-155.0,0.00013042,2]
[336473474,1724862638180,-6493.29,0.00013042,2]
[336473477,1724862638198,-1016.41,0.00013042,2]
[336473479,1724862638213,-155.0,0.00013052,2]
[336473482,1724862638228,-215.23279799,0.00013052,2]
[336473484,1724862638240,-236.34424982,0.00013052,2]
[336473487,1724862638261,-160.2476028,0.00013052,2]
[336473489,1724862638274,-844.13348591,0.00013052,2]
[336473492,1724862638288,-365.80180037,0.00013052,2]
[336473494,1724862638301,-203.56323821,0.00013052,2]
[336473496,1724862638315,-4687.34664948,0.00013086,2]
[336473521,1724862638566,-585.70767439,0.00013086,2]
[336473619,1724862639521,-277.0529498,0.00013086,2]
[336473622,1724862639538,-284.68382396,0.00013086,2]
[336473630,1724862639611,-619.7215,0.00013086,2]
[336473633,1724862639630,-1492.35500001,0.00013086,2]
[336473636,1724862639651,-3405.1876228,0.00013086,2]
[336473639,1724862639671,-2139.99999,0.00013086,2]
[336473642,1724862639691,-1383.10990743,0.00013086,2]
[336473649,1724862639751,-629.85285289,0.00013086,2]
[336473651,1724862639765,-587.0,0.0001327,2]
[336473653,1724862639779,-404.83828581,0.00013292,2]
[336473654,1724862639795,-389.18171419,0.00013292,2]
[336473655,1724862639808,-380.75615152,0.00013333,2]
[336473656,1724862639822,-264.75871737,0.00013333,2]
[336473657,1724862639837,-225.9939495,0.00013333,2]
[336473658,1724862639851,-166.44772973,0.00013333,2]
[336473659,1724862639865,-164.56354691,0.00013333,2]
[336473660,1724862639879,-500.0,0.00013391,2]
[336473661,1724862639892,-357.97937387,0.00013698,2]
[336473662,1724862639905,-156.39812584,0.00013698,2]
[336473663,1724862639919,-725.06879017,0.00013698,2]
[336473664,1724862639936,-269.55446426,0.00013698,2]
[336473665,1724862639952,-1102.84884162,0.00013698,2]
[336473666,1724862639965,-4257.87009306,0.000138,2]
[336473667,1724862639997,-4235.98920921,0.000138,2]
[336473668,1724862640012,-4019.09127962,0.000138,2]
[336473669,1724862640028,-315.6,0.000138,2]
[336473670,1724862640047,-34979.84543031,0.000138,2]
[336473671,1724862640060,-151.0,0.000138,2]
[336473673,1724862640072,-151.0,0.000138,2]
[336473675,1724862640085,-499.99,0.00013836,2]
[336473677,1724862640098,-155.26425396,0.00013851,2]
[336473680,1724862640111,-155.0,0.00013851,2]
[336473682,1724862640123,-150.99,0.00014098,2]
[336473684,1724862640136,-3699.73,0.00014098,2]
[336473687,1724862640150,-1444.60455856,0.00014245,2]
[336473689,1724862640163,-1000.0,0.00014343,2]
[336473691,1724862640175,-198.660879,0.00014344,2]
[336473694,1724862640191,-198.660879,0.00014344,2]
[336473696,1724862640203,-151.0,0.00014344,2]
[336473698,1724862640216,-151.0,0.00014344,2]
[336473700,1724862640229,-176.650911,0.00014344,2]
[336473703,1724862640243,-176.650911,0.00014344,2]
[336473705,1724862640255,-455.179551,0.00014344,2]
[336473708,1724862640268,-455.179551,0.00014344,2]
[336473710,1724862640282,-382.361184,0.00014344,2]
[336473711,1724862640295,-382.361184,0.00014344,2]
[336473712,1724862640309,-3724.89,0.00014344,2]
[336473713,1724862640320,-823.0,0.00014583,2]
[336473714,1724862640334,-3790.37,0.00014753,2]
[336473715,1724862640348,-3798.27,0.00014782,2]
[336473716,1724862640361,-151.0,0.000149,2]
[336473717,1724862640371,-151.0,0.000149,2]
[336473718,1724862640381,-150.81,0.0001498,2]
[336473719,1724862640391,-23904.1980061,0.0001499,2]
[336473720,1724862640400,-151.0,0.0001499,2]
[336473721,1724862640410,-151.0,0.0001499,2]
[336473722,1724862640420,-461.88965921,0.00014999,2]
[336473724,1724862640430,-500.0,0.00014999,2]
[336473726,1724862640444,-500.0,0.00014999,2]
[336473728,1724862640454,-500.0,0.00014999,2]
[336473730,1724862640464,-500.0,0.00014999,2]
[336473732,1724862640474,-500.0,0.00014999,2]
[336473734,1724862640483,-500.0,0.00014999,2]
[336473736,1724862640492,-500.0,0.00014999,2]
[336473738,1724862640502,-500.0,0.00014999,2]
[336473749,1724862640946,-535.58177192,0.00014999,2]
[336473750,1724862640989,-9357.0,0.00015,2]
[336473751,1724862641015,-3809.74,0.00015,2]
[336473752,1724862641025,-152.243641,0.00015,2]
[336473753,1724862641034,-151.0,0.00015,2]
[336473754,1724862641044,-5307.643552,0.00015,2]
[336473755,1724862641053,-151.0,0.00015,2]
[336473756,1724862641064,-5307.643552,0.00015,2]
[336473757,1724862641073,-3035.105515,0.00015,2]
[336473758,1724862641083,-3035.105515,0.00015,2]
[336473759,1724862641093,-450.17467442,0.00015,2]
[336473760,1724862641102,-151.0,0.00015,2]
[336473761,1724862641112,-822.35406796,0.00015,2]
[336473762,1724862641121,-242.539435,0.00015,2]
[336473763,1724862641131,-242.539435,0.00015,2]
[336473764,1724862641140,-198.660879,0.00015,2]
[336473765,1724862641150,-151.0,0.00015,2]
[336473766,1724862641160,-198.660879,0.00015,2]
[336473767,1724862641170,-151.0,0.00015,2]
[336473768,1724862641179,-151.0,0.00015,2]
[336473769,1724862641192,-151.0,0.00015,2]
[336473770,1724862641202,-176.650911,0.00015,2]
[336473771,1724862641211,-176.650911,0.00015,2]
[336473772,1724862641221,-151.0,0.00015,2]
[336473773,1724862641230,-455.179551,0.00015,2]
[336473774,1724862641240,-455.179551,0.00015,2]
[336473775,1724862641249,-382.361184,0.00015,2]
[336473776,1724862641258,-382.361184,0.00015,2]
[336473777,1724862641268,-750.22,0.00015001,2]
[336473778,1724862641277,-250.0,0.0001512,2]
[336473779,1724862641288,-2751.0,0.00015207,2]
[336473780,1724862641297,-1152.0,0.00016025,2]
[336473781,1724862641307,-151.0,0.00016146,2]
[336473782,1724862641317,-3826.31,0.00016146,2]
[336473783,1724862641326,-150.0,0.00016472,2]
[336473784,1724862641336,-1500.0,0.00016504,10]
[336473785,1724862641346,-242.63,0.00016551,2]
[336473786,1724862641355,-151.0,0.00016808,2]
[336473787,1724862641364,-151.0,0.00016808,2]
[336473788,1724862641374,-151.0,0.00016808,2]
[336473789,1724862641384,-151.0,0.00016808,2]
[336473790,1724862641394,-151.0,0.00016808,2]
[336473791,1724862641405,-151.0,0.00016808,2]
[336473792,1724862641415,-151.0,0.00016808,2]
[336473793,1724862641424,-424.85,0.00016808,2]
[336473794,1724862641434,-1613.0,0.0001761,2]
[336473795,1724862641448,-1397.63,0.000177,7]
[336473796,1724862641458,-447.79008175,0.00018,4]
[336473797,1724862641468,-200.0,0.00018382,2]
[336473798,1724862641477,-289.0,0.00018835,2]
[336473799,1724862641487,-1923.0,0.00018835,2]
[336473800,1724862641497,-3729.0,0.00018835,2]
[336473801,1724862641507,-5836.0,0.00018835,2]
[336473802,1724862641516,-1077.0,0.00018835,2]
[336473803,1724862641526,-171.0,0.00018988,2]
[336473804,1724862641535,-180.32487481,0.00019,2]
[336473805,1724862641544,-1000.0,0.00019048,2]
[336473806,1724862641558,-424.85,0.00019072,2]
[336473807,1724862641568,-151.0,0.00019345,2]
[336473808,1724862641577,-151.0,0.00019346,2]
[336473809,1724862641587,-5307.643552,0.00019346,2]
[336473810,1724862641597,-151.366338,0.00019346,2]
[336473811,1724862641607,-5307.643552,0.00019346,2]
[336473812,1724862641616,-3035.105515,0.00019346,2]
[336473813,1724862641628,-3035.105515,0.00019346,2]
[336473814,1724862641637,-151.0,0.00019346,2]
[336473815,1724862641647,-242.539435,0.00019346,2]
[336473816,1724862641656,-242.539435,0.00019346,2]
[336473817,1724862641665,-198.660879,0.00019346,2]
[336473818,1724862641674,-198.660879,0.00019346,2]
[336473819,1724862641684,-151.0,0.00019346,2]
[336473820,1724862641697,-153.194892,0.00019346,2]
[336473821,1724862641706,-151.0,0.00019346,2]
[336473822,1724862641716,-176.650911,0.00019346,2]
[336473823,1724862641725,-176.650911,0.00019346,2]
[336473824,1724862641734,-455.179551,0.00019346,2]
[336473825,1724862641744,-455.179551,0.00019346,2]
[336473826,1724862641753,-382.361184,0.00019346,2]
[336473827,1724862641762,-382.361184,0.00019346,2]
[336473828,1724862641772,-189.639943,0.00019351,2]
[336473829,1724862641781,-2258.0,0.00019351,2]
[336473830,1724862641791,-154.18,0.00019361,2]
[336473831,1724862641800,-256.8,0.00019757,2]
[336473832,1724862641810,-7048.84430218,0.0001988,2]
[336473833,1724862641820,-500.0,0.00019965,2]
[336473834,1724862641829,-500.0,0.00019974,2]
[336473835,1724862641839,-500.0,0.00019982,2]
[336473836,1724862641848,-500.0,0.00019991,2]
[336473837,1724862641858,-500.0,0.00019991,2]
[336473838,1724862641869,-500.0,0.0002,2]
[336473839,1724862641879,-500.0,0.0002,2]
[336473840,1724862641888,-164.99535302,0.000205,2]
[336473841,1724862641898,-14073.93946159,0.00020535,10]
[336473842,1724862641907,-1095.71618056,0.00020535,14]
[336473843,1724862641917,-23904.1980061,0.00020536,3]